lending/lending_fUSD_20240522
["ID","MTS","AMOUNT","RATE_DAILY","PERIOD"]
[327732107,1716395438338,-4186.52002942,0.000132,2]
[327732108,1716395438350,-5542.227312,0.000132,2]
[327732109,1716395438364,-5475.96,0.000132,2]
[327732110,1716395438447,-8156.16,0.000132,2]
[327732111,1716395438565,-17506.88967847,0.000132,2]
[327732112,1716395438576,-907.87201028,0.000132,2]
[327732113,1716395438587,-6791.36110717,0.000132,2]
[327732114,1716395438604,-8878.99741647,0.000132,2]
[327732115,1716395438614,-2509.7304,0.00013213,2]
[327732116,1716395438623,-789.85427492,0.00013337,2]
[327732117,1716395438632,-15274.09736691,0.00013338,2]
[327732118,1716395438642,-12666.38808509,0.00013338,2]
[327732119,1716395438651,-48083.22750909,0.0001334,2]
[327732120,1716395438661,-155.0,0.0001334,2]
[327732121,1716395438670,-499.99,0.0001334,2]
[327732122,1716395438679,-1795.9975,0.0001334,2]
[327732123,1716395438688,-2473.35,0.0001337,2]
[327732124,1716395438698,-1723.81,0.0001337,2]
[327732125,1716395438707,-3053.68,0.00013575,2]
[327732126,1716395438716,-1000.0,0.000139,2]
[327732127,1716395438726,-150.72,0.00013973,2]
[327732128,1716395438736,-168.66,0.00013973,2]
[327732130,1716395438745,-236.2,0.00013973,2]
[327732131,1716395438756,-1039.40241281,0.00014,2]
[327732132,1716395438769,-362.09,0.00014068,2]
[327732133,1716395438779,-210.88346445,0.00014234,2]
[327732134,1716395438788,-4416.32926679,0.00014865,2]
[327732135,1716395438798,-1000.0,0.000149,2]
[327732136,1716395438808,-200.0,0.00015,2]
[327732137,1716395438817,-8092.39759761,0.00015,2]
[327732138,1716395438827,-619.02429447,0.00015,2]
[327732139,1716395438837,-155.0,0.00015,2]
[327732140,1716395438848,-155.0,0.00015,2]
[327732141,1716395438860,-23900.0,0.00015061,2]
[327732142,1716395438870,-500.0,0.00015405,2]
[327732143,1716395438879,-183.83,0.00015538,2]
[327732144,1716395438888,-674.07,0.00015613,2]
[327732145,1716395438897,-250.0,0.00015799,2]
[327732146,1716395438907,-2751.0,0.00015806,2]
[327732147,1716395438916,-167.0,0.00015831,2]
[327732148,1716395438926,-172.42,0.00015831,2]
[327732149,1716395438935,-1000.0,0.000159,2]
[327732150,1716395438944,-167.04,0.00015911,2]
[327732151,1716395438953,-200.0,0.0001594,2]
[327732152,1716395438963,-843.95,0.00015953,2]
[327732153,1716395438972,-325.93,0.00015971,2]
[327732154,1716395438981,-152.01,0.00015971,2]
[327732155,1716395438991,-250.0,0.00015996,2]
[327732156,1716395439001,-200.0,0.00015999,2]
[327732157,1716395439010,-3195.27,0.00016,2]
[327732158,1716395439019,-2925.1475,0.00016016,2]
[327732159,1716395439028,-9999.99,0.00016116,2]
[327732160,1716395439038,-362.09,0.00016332,2]
[327732161,1716395439048,-167.0,0.00016354,2]
[327732162,1716395439058,-800.0,0.00016685,2]
[327732163,1716395439180,-172.42,0.00016702,2]
[327732164,1716395439193,-179.52,0.00016712,2]
[327732165,1716395439203,-300.0,0.00016775,2]
[327732166,1716395439212,-4416.32926679,0.0001683,2]
[327732167,1716395439223,-167.0,0.00016876,2]
[327732168,1716395439232,-6223.84,0.00016922,2]
[327732169,1716395439241,-1228.09,0.00016922,2]
[327732170,1716395439251,-4417.99,0.00016922,2]
[327732171,1716395439260,-22945.08,0.00016922,2]
[327732172,1716395439270,-782.34,0.00016922,2]
[327732173,1716395439279,-5719.82,0.00016922,2]
[327732174,1716395439289,-2424.98634334,0.00017,2]
[327732175,1716395439299,-171.94,0.00017039,2]
[327732176,1716395439308,-167.0,0.00017399,2]
[327732177,1716395439318,-674.07,0.00017565,2]
[327732178,1716395439328,-172.42,0.00017573,2]
[327732179,1716395439338,-167.0,0.00017921,2]
[327732180,1716395439347,-325.93,0.00017967,2]
[327732181,1716395439359,-155.0,0.00018,2]
[327732182,1716395439369,-300.0,0.00018145,2]
[327732183,1716395439379,-2892.0,0.000182,2]
[327732184,1716395439391,-171.94,0.00018244,2]
[327732185,1716395439401,-1795.9975,0.0001834,2]
[327732186,1716395439411,-753.0,0.000184,2]
[327732187,1716395439420,-167.0,0.00018444,2]
[327732188,1716395439431,-172.42,0.00018444,2]
[327732189,1716395439441,-362.09,0.00018595,2]
[327732190,1716395439451,-3195.27,0.00018739,2]
[327732191,1716395439461,-4416.32926679,0.00018796,2]
[327732192,1716395439470,-1499.12861225,0.000189,2]
[327732193,1716395439478,-410.39631753,0.00019,2]
[327732194,1716395439486,-1615.0510207,0.00019,2]
[327732195,1716395439494,-151.0,0.00019034,3]
[327732196,1716395439504,-151.0,0.00019034,2]
[327732197,1716395439513,-500.0,0.00019178,2]
[327732198,1716395439523,-500.0,0.00019178,2]
[327732199,1716395439532,-500.0,0.00019178,2]
[327732200,1716395439542,-500.0,0.00019178,2]
[327732201,1716395439551,-500.0,0.00019178,2]
[327732202,1716395439560,-500.0,0.00019178,2]
[327732203,1716395439569,-211.33902169,0.00019178,2]
[327732204,1716395439578,-5003.2,0.00019178,2]
[327732205,1716395439588,-3881.14394197,0.000192,2]
[327732206,1716395439598,-171.94,0.00019449,2]
[327732207,1716395439608,-674.07,0.00019517,2]
[327732208,1716395439618,-167.04,0.00019889,2]
[327732209,1716395439628,-205.414247,0.0001989,2]
[327732210,1716395439638,-342348.4407941,0.000199,3]
[327732211,1716395439648,-184.08530355,0.00019963,2]
[327732212,1716395439658,-352.65331821,0.00019963,2]
[327732213,1716395439667,-325.93,0.00019964,2]
[327732214,1716395439677,-5186.20094472,0.0002,2]
[327732215,1716395439686,-155.0,0.0002,2]
[327732216,1716395439696,-155.0,0.0002,2]
[327732217,1716395439706,-1263.30642158,0.0002,2]
[327732218,1716395439716,-201.22027232,0.0002,2]
[327732219,1716395439725,-627.95805638,0.0002,2]
[327732220,1716395439735,-155.0,0.0002,4]
[327732221,1716395439745,-11046.34231626,0.0002,2]
[327732222,1716395439758,-862.31038971,0.0002,2]
[327732223,1716395439767,-2151.98026903,0.0002,2]
[327732224,1716395439785,-4087.64981303,0.0002,2]
[327732225,1716395439795,-155.0,0.0002,2]
[327732226,1716395439805,-1000.0,0.0002,3]
[327732227,1716395439815,-151.0,0.00020068,2]
[327732228,1716395439824,-168.66,0.00020447,2]
[327732229,1716395439833,-236.2,0.00020447,2]
[327732230,1716395439845,-170.85,0.00020548,2]
[327732231,1716395439855,-1499.12861221,0.00020647,2]
[327732232,1716395439865,-171.94,0.00020654,2]
[327732233,1716395439875,-4416.32926679,0.00020761,2]
[327732234,1716395439884,-362.09,0.00020859,2]
[327732235,1716395439893,-316.97776325,0.00020974,2]
[327732236,1716395439904,-717.9371715,0.00021,2]
[327732237,1716395439913,-25250.92,0.0002137,2]
[327732238,1716395439922,-3362.63936959,0.0002137,2]
[327732242,1716395440537,-320.56369364,0.00013899,2]
[327732243,1716395440548,-977.40933741,0.00013899,2]
[327732244,1716395440557,-2488.58063041,0.0002137,2]
[327732245,1716395440567,-674.07,0.00021468,2]
[327732246,1716395440576,-928.70303218,0.00021479,2]
[327732247,1716395440660,-2266.56696782,0.00021479,2]
[327732248,1716395440670,-501.0,0.000219,2]
[327732249,1716395440679,-209.7,0.00021918,2]
[327732250,1716395440688,-462.11,0.00021918,2]
[327732251,1716395440698,-163.86,0.00021918,2]
[327732252,1716395440707,-2000.0,0.00021918,2]
[327732253,1716395440716,-325.93,0.0002196,2]
[327732254,1716395440726,-956.38018722,0.00022,2]
[327732255,1716395440735,-239.72713494,0.00022,2]
[327732256,1716395440745,-1058.87217426,0.00022,2]
[327732257,1716395440755,-787.61802861,0.00022,2]
[327732258,1716395440769,-1000.0,0.00022,3]
[327732259,1716395440778,-260.0,0.00022,2]
[327732260,1716395440788,-153.23677825,0.00022053,2]
[327732261,1716395440797,-316.97776325,0.00022083,2]
[327732262,1716395440809,-224.82587854,0.0002211,2]
[327732263,1716395440818,-153.23677825,0.00022135,2]
[327732264,1716395440828,-155.03936473,0.00022146,2]
[327732265,1716395440837,-154.67800329,0.00022178,2]
[327732266,1716395440849,-155.43437952,0.00022293,2]
[327732267,1716395440860,-843.95,0.00022335,2]
[327732268,1716395440870,-1499.12861221,0.00022395,2]
[327732269,1716395440879,-153.23677825,0.00022442,2]
[327732270,1716395440890,-3530.67399987,0.000225,2]
[327732271,1716395440994,-155.03936473,0.00022541,2]
[327732272,1716395441004,-154.94922214,0.00022565,2]
[327732273,1716395441013,-155.03936473,0.00022581,2]
[327732274,1716395441022,-158.54315617,0.00022649,2]
[327732275,1716395441032,-4416.32926679,0.00022726,2]
[327732276,1716395441041,-166.66666666,0.00022934,2]
[327732277,1716395441051,-155.03936473,0.00022991,2]
[327732278,1716395441060,-5511.49091993,0.00023,2]
[327732279,1716395441069,-750.0,0.00023,2]
[327732280,1716395441079,-155.03936473,0.00023032,2]
[327732281,1716395441088,-362.09,0.00023123,2]
[327732282,1716395441098,-316.97776325,0.00023193,2]
[327732283,1716395441108,-200.0,0.00023248,2]
[327732284,1716395441117,-154.94922214,0.00023277,2]
[327732285,1716395441126,-183.83,0.00023308,2]
[327732286,1716395441136,-1795.99751,0.0002334,2]
[327732287,1716395441145,-2004.82313321,0.000234,2]
[327732288,1716395441155,-674.07,0.0002342,2]
[327732289,1716395441163,-158.54315617,0.00023492,2]
[327732290,1716395441173,-169.18135279,0.00023597,2]
[327732291,1716395441182,-167.04,0.00023866,2]
[327732292,1716395441192,-325.93,0.00023957,2]
[327732293,1716395441202,-6136.49872792,0.00023996,2]
[327732294,1716395441211,-472.37732213,0.00024,2]
[327732295,1716395441221,-152.02782901,0.00024037,2]
[327732296,1716395441230,-153.23677825,0.00024037,2]
[327732297,1716395441239,-153.23677825,0.00024103,2]
[327732298,1716395441248,-1499.12861221,0.00024142,2]
[327732299,1716395441258,-159.16129054,0.00024217,2]
[327732300,1716395441267,-180.0,0.0002423,2]
[327732301,1716395441276,-155.03936473,0.00024243,2]
[327732302,1716395441286,-166.66666666,0.00024278,2]
[327732303,1716395441295,-158.54315617,0.00024283,2]
[327732304,1716395441304,-316.97776325,0.00024303,2]
[327732305,1716395441313,-153.23677825,0.00024327,2]
[327732306,1716395441322,-151.97205109,0.00024353,2]
[327732307,1716395441332,-155.03936473,0.00024359,2]
[327732308,1716395441341,-158.54315617,0.00024384,2]
[327732309,1716395441350,-158.54315617,0.00024404,2]
[327732310,1716395441362,-155.03936473,0.00024447,2]
[327732311,1716395441371,-760.94759259,0.0002449,2]
[327732317,1716395443353,-2995.24749963,0.0002449,2]
[327732319,1716395443428,-6243.80490778,0.0002449,2]
[327732321,1716395443438,-151.97205109,0.00024558,2]
[327732322,1716395443448,-157.80416394,0.00024658,2]
[327732323,1716395443658,-92.19583606,0.00024658,2]
[327732324,1716395443668,-4416.32926679,0.00024691,2]
[327732325,1716395443678,-501.40138123,0.000247,2]
[327732326,1716395443688,-155.03936473,0.0002472,2]
[327732327,1716395443697,-273.14063394,0.0002475,2]
[327732328,1716395443707,-200.0,0.000248,2]
[327732329,1716395443716,-152.85,0.00024875,2]
[327732330,1716395443727,-10785.69102746,0.00024885,2]
[327732336,1716395446435,-364.27737293,0.00017258,2]
[327732337,1716395446452,-10526.87634551,0.00017259,2]
[327732338,1716395446468,-11967.27506343,0.00024885,2]
[327732339,1716395446499,-1887.40000001,0.00024885,2]
[327732350,1716395554005,387.33,0.00033151,120]
[327732360,1716395627262,1481.44,0.00021992,30]
[327732361,1716395627641,1481.44,0.00025538,30]
[327732362,1716395668249,373.51823841,6.94e-05,2]
[327732365,1716395749948,165.68,0.00010959,2]
[327732366,1716395760512,828.45,0.00010959,2]
[327732367,1716395790854,150.0,0.0001,2]
[327732368,1716395790877,221.62015503,0.0001,2]
[327732369,1716395790902,12826.39306525,0.0001,2]
[327732370,1716395808943,191.39,6.94e-05,2]
[327732371,1716396046375,155.0,6.94e-05,2]
[327732372,1716396064294,155.0,6.94e-05,2]
[327732373,1716396082110,150.0,0.00011819,2]
[327732374,1716396089053,308.07,0.00033151,120]
[327732375,1716396118781,1316.83,0.00021589,30]
[327732376,1716396119160,1316.83,0.00025135,30]
[327732381,1716396513359,-489.06715365,0.00012124,2]
[327732382,1716396513380,-155.0,0.00012124,2]
[327732383,1716396513401,-155.0,0.00012125,2]
[327732384,1716396513423,-3009.71100463,0.00012125,2]
[327732385,1716396513444,-5565.87580621,0.00012125,2]
[327732386,1716396513465,-263.17590195,0.00012126,2]
[327732387,1716396513487,-2329.66280246,0.00012126,2]
[327732388,1716396513507,-4463.0,0.00012126,2]
[327732393,1716396528751,160.2,0.0001157,2]
[327732400,1716396613952,1170.51,0.00021589,30]
[327732401,1716396614183,1170.51,0.00025135,30]
[327732407,1716396631741,-529.39391073,0.00012127,2]
[327732408,1716396631751,-150.0,0.00012127,2]
[327732409,1716396631760,-150.0,0.00012137,2]
[327732410,1716396631770,-499.99,0.00012184,2]
[327732411,1716396631779,-289.83,0.00012539,2]
[327732412,1716396631789,-11498.6237,0.000129,2]
[327732413,1716396631798,-162.82927502,0.000129,2]
[327732414,1716396631808,-749.56430614,0.000129,2]
[327732415,1716396631819,-316.97776328,0.000129,2]
[327732416,1716396631829,-175.7116635,0.000129,2]
[327732417,1716396631838,-1655.74,0.00012977,2]
[327732418,1716396631847,-644.88840543,0.0001298,2]
[327732419,1716396631858,-644.88840543,0.0001298,2]
[327732420,1716396631867,-644.88840543,0.00012987,2]
[327732421,1716396631876,-644.88840543,0.00012987,2]
[327732422,1716396631886,-1818.19811343,0.00012988,2]
[327732423,1716396631896,-262.67871929,0.00012988,2]
[327732424,1716396631905,-155.63383779,0.00012989,2]
[327732425,1716396631914,-395.03730982,0.00012989,2]
[327732426,1716396631923,-489.95530596,0.00012989,2]
[327732427,1716396631933,-1438.61881244,0.00012989,2]
[327732428,1716396631943,-198.07010589,0.00012989,2]
[327732429,1716396631952,-644.88840543,0.0001299,2]
[327732430,1716396631962,-644.88840543,0.0001299,2]
[327732431,1716396631971,-644.88840543,0.0001299,2]
[327732432,1716396631981,-644.88840543,0.0001299,2]
[327732433,1716396631991,-644.88840543,0.0001299,2]
[327732434,1716396632000,-644.88840543,0.0001299,2]
[327732435,1716396632010,-644.88840543,0.0001299,2]
[327732436,1716396632020,-644.88840543,0.0001299,2]
[327732437,1716396632030,-644.88840543,0.0001299,2]
[327732438,1716396632039,-644.88840543,0.0001299,2]
[327732439,1716396632048,-644.88840543,0.0001299,2]
[327732440,1716396632058,-644.88840543,0.0001299,2]
[327732441,1716396632069,-644.88840543,0.0001299,2]
[327732442,1716396632078,-644.88840543,0.0001299,2]
[327732443,1716396632087,-644.88840543,0.0001299,2]
[327732444,1716396632096,-644.88840543,0.0001299,2]
[327732445,1716396632106,-644.88840543,0.0001299,2]
[327732446,1716396632116,-644.88840543,0.0001299,2]
[327732447,1716396632126,-644.88840543,0.0001299,2]
[327732448,1716396632135,-644.88840543,0.0001299,2]
[327732449,1716396632144,-644.88840543,0.0001299,2]
[327732450,1716396632157,-644.88840543,0.0001299,2]
[327732451,1716396632166,-644.88840543,0.0001299,2]
[327732452,1716396632176,-644.88840543,0.0001299,2]
[327732454,1716396632185,-644.88840543,0.0001299,2]
[327732455,1716396632194,-644.88840543,0.0001299,2]
[327732457,1716396632205,-644.88840543,0.0001299,2]
[327732459,1716396632214,-644.88840543,0.0001299,2]
[327732461,1716396632224,-644.88840543,0.0001299,2]
[327732463,1716396632235,-644.88840543,0.0001299,2]
[327732465,1716396632244,-644.88840543,0.0001299,2]
[327732467,1716396632253,-644.88840543,0.0001299,2]
[327732469,1716396632262,-644.88840543,0.0001299,2]
[327732471,1716396632272,-644.88840543,0.0001299,2]
[327732472,1716396632282,-644.88840543,0.0001299,2]
[327732473,1716396632292,-644.88840543,0.0001299,2]
[327732474,1716396632302,-644.88840543,0.0001299,2]
[327732475,1716396632314,-644.88840543,0.0001299,2]
[327732476,1716396632323,-644.88840543,0.0001299,2]
[327732477,1716396632333,-644.88840543,0.0001299,2]
[327732478,1716396632342,-644.88840543,0.0001299,2]
[327732479,1716396632353,-644.88840543,0.0001299,2]
[327732480,1716396632362,-644.88840543,0.0001299,2]
[327732481,1716396632371,-644.88840543,0.0001299,2]
[327732482,1716396632380,-644.88840543,0.0001299,2]
[327732483,1716396632391,-644.88840543,0.0001299,2]
[327732484,1716396632400,-152.86,0.0001299,2]
[327732485,1716396632410,-441.72413125,0.0001299,2]
[327732486,1716396632419,-441.72413125,0.0001299,2]
[327732487,1716396632428,-441.72413125,0.0001299,2]
[327732488,1716396632438,-441.72413125,0.0001299,2]
[327732489,1716396632447,-441.72413125,0.0001299,2]
[327732490,1716396632457,-441.72413125,0.0001299,2]
[327732491,1716396632466,-441.72413125,0.0001299,2]
[327732492,1716396632476,-441.72413125,0.0001299,2]
[327732493,1716396632485,-441.72413125,0.0001299,2]
[327732494,1716396632495,-441.72413125,0.0001299,2]
[327732495,1716396632505,-441.72413125,0.0001299,2]
[327732496,1716396632515,-441.72413125,0.0001299,2]
[327732497,1716396632525,-441.72413125,0.0001299,2]
[327732498,1716396632535,-441.72413125,0.0001299,2]
[327732499,1716396632544,-441.72413125,0.0001299,2]
[327732500,1716396632554,-441.72413125,0.0001299,2]
[327732501,1716396632566,-441.72413125,0.0001299,2]
[327732502,1716396632575,-441.72413125,0.0001299,2]
[327732503,1716396632585,-441.72413125,0.0001299,2]
[327732504,1716396632594,-441.72413125,0.0001299,2]
[327732505,1716396632603,-441.72413125,0.0001299,2]
[327732506,1716396632612,-441.72413125,0.0001299,2]
[327732507,1716396632621,-441.72413125,0.0001299,2]
[327732508,1716396632631,-441.72413125,0.0001299,2]
[327732509,1716396632640,-441.72413125,0.0001299,2]
[327732510,1716396632649,-441.72413125,0.0001299,2]
[327732511,1716396632659,-441.72413125,0.0001299,2]
[327732512,1716396632668,-441.72413125,0.0001299,2]
[327732513,1716396632678,-441.72413125,0.0001299,2]
[327732514,1716396632687,-441.72413125,0.0001299,2]
[327732515,1716396632697,-441.72413125,0.0001299,2]
[327732516,1716396632706,-441.72413125,0.0001299,2]
[327732517,1716396632716,-441.72413125,0.0001299,2]
[327732518,1716396632725,-441.72413125,0.0001299,2]
[327732519,1716396632735,-441.72413125,0.0001299,2]
[327732520,1716396632744,-441.72413125,0.0001299,2]
[327732521,1716396632753,-441.72413125,0.0001299,2]
[327732522,1716396632762,-441.72413125,0.0001299,2]
[327732523,1716396632772,-441.72413125,0.0001299,2]
[327732524,1716396632781,-441.72413125,0.0001299,2]
[327732525,1716396632791,-441.72413125,0.0001299,2]
[327732526,1716396632800,-441.72413125,0.0001299,2]
[327732527,1716396632912,-441.72413125,0.0001299,2]
[327732528,1716396632922,-441.72413125,0.0001299,2]
[327732529,1716396632932,-441.72413125,0.0001299,2]
[327732530,1716396632941,-441.72413125,0.0001299,2]
[327732531,1716396632951,-441.72413125,0.0001299,2]
[327732532,1716396632960,-441.72413125,0.0001299,2]
[327732533,1716396632971,-441.72413125,0.0001299,2]
[327732534,1716396632980,-441.72413125,0.0001299,2]
[327732535,1716396632989,-441.72413125,0.0001299,2]
[327732536,1716396632999,-441.72413125,0.0001299,2]
[327732537,1716396633009,-441.72413125,0.0001299,2]
[327732538,1716396633018,-441.72413125,0.0001299,2]
[327732539,1716396633027,-441.72413125,0.0001299,2]
[327732540,1716396633037,-441.72413125,0.0001299,2]
[327732541,1716396633046,-7519.40413428,0.00012997,2]
[327732542,1716396633056,-150.0,0.00012999,2]
[327732543,1716396633068,-91611.00422007,0.00013,2]
[327732544,1716396633127,-334.62848752,0.0001299,2]
[327732548,1716396637564,-107.09564373,0.0001299,2]
[327732549,1716396637574,-441.72413125,0.0001299,2]
[327732550,1716396637583,-441.72413125,0.0001299,2]
[327732551,1716396637592,-441.72413125,0.0001299,2]
[327732552,1716396637602,-441.72413125,0.0001299,2]
[327732553,1716396637612,-441.72413125,0.0001299,2]
[327732554,1716396637621,-441.72413125,0.0001299,2]
[327732555,1716396637630,-441.72413125,0.0001299,2]
[327732556,1716396637639,-441.72413125,0.0001299,2]
[327732557,1716396637649,-441.72413125,0.0001299,2]
[327732558,1716396637658,-441.72413125,0.0001299,2]
[327732559,1716396637667,-441.72413125,0.0001299,2]
[327732560,1716396637782,-441.72413125,0.0001299,2]
[327732561,1716396637792,-441.72413125,0.0001299,2]
[327732562,1716396637801,-441.72413125,0.0001299,2]
[327732563,1716396637810,-441.72413125,0.0001299,2]
[327732564,1716396637821,-441.72413125,0.0001299,2]
[327732565,1716396637830,-441.72413125,0.0001299,2]
[327732567,1716396637839,-441.72413125,0.0001299,2]
[327732568,1716396637848,-441.72413125,0.0001299,2]
[327732570,1716396637857,-441.72413125,0.0001299,2]
[327732572,1716396637867,-441.72413125,0.0001299,2]
[327732573,1716396637876,-441.72413125,0.0001299,2]
[327732574,1716396637885,-441.72413125,0.0001299,2]
[327732575,1716396637895,-90.63212552,0.0001299,2]
[327732577,1716396637936,-351.09200573,0.0001299,2]
[327732578,1716396637945,-225.18426677,0.0001299,2]
[327732579,1716396637957,-216.53986448,0.0001299,2]
[327732580,1716396637966,-441.72413125,0.0001299,2]
[327732581,1716396637975,-397.72296979,0.0001299,2]
[327732582,1716396637999,-44.00116146,0.0001299,2]
[327732583,1716396638009,-441.72413125,0.0001299,2]
[327732584,1716396638018,-441.72413125,0.0001299,2]
[327732585,1716396638027,-242.10457606,0.0001299,2]
[327732586,1716396638061,-199.61955519,0.0001299,2]
[327732587,1716396638072,-441.72413125,0.0001299,2]
[327732588,1716396638082,-441.72413125,0.0001299,2]
[327732589,1716396638091,-441.72413125,0.0001299,2]
[327732590,1716396638100,-502.62590494,0.00013,2]
[327732591,1716396638112,-2583.50568934,0.00013,2]
[327732593,1716396639919,-441.72413125,0.0001299,2]
[327732594,1716396639935,-441.72413125,0.0001299,2]
[327732595,1716396639950,-441.72413125,0.0001299,2]
[327732596,1716396639965,-441.72413125,0.0001299,2]
[327732597,1716396639980,-441.72413125,0.0001299,2]
[327732598,1716396639994,-441.72413125,0.0001299,2]
[327732599,1716396640010,-441.72413125,0.0001299,2]
[327732600,1716396640024,-144.15603875,0.0001299,2]
[327732601,1716396640044,-297.5680925,0.0001299,2]
[327732602,1716396640058,-441.72413125,0.0001299,2]
[327732603,1716396640075,-441.72413125,0.0001299,2]
[327732604,1716396640090,-296.23364502,0.00013,2]
[327732611,1716396642543,-677.19264192,0.00013,2]
[327732613,1716396642556,-843.48762855,0.00013,2]
[327732616,1716396642568,-752.06503485,0.00013,2]
[327732679,1716396643339,-3214.19555039,0.00013,2]
[327732680,1716396643353,-370.0310302,0.00013,2]
[327732681,1716396643364,-46860.67726829,0.00013,2]
[327732682,1716396643375,-393.0,0.00013,2]
[327732683,1716396643387,-524.20962588,0.00013,2]
[327732684,1716396643451,-3522.40074,0.00013,2]
[327732685,1716396645945,-563.47062043,0.00012999,2]
[327732686,1716396645956,-4287.66365855,0.00013,2]
[327732687,1716396645967,-13435.0,0.00013,2]
[327732689,1716396646770,1093.52382414,0.00012999,3]
[327732690,1716396664752,1800.0,0.000125,4]
[327732691,1716396667035,3700.0,0.000126,4]
[327732692,1716396668992,5600.0,0.000127,4]
[327732693,1716396671101,7400.0,0.000128,4]
[327732694,1716396673203,9300.0,0.000129,4]
[327732707,1716396750278,322.77,0.00033151,120]
[327732714,1716396784202,635.0,0.0001962,15]
[327732715,1716396784896,635.0,0.0001961,15]
[327732716,1716396785475,635.0,0.000196,15]
[327732719,1716396819169,2580.27071034,0.000224,30]
[327732721,1716396903934,444.0,0.0001969,15]
[327732722,1716396904542,444.0,0.0001968,15]
[327732723,1716396905782,444.0,0.0001967,15]
[327732724,1716396906769,444.0,0.0001969,15]
[327732725,1716396907396,444.0,0.0001968,15]
[327732727,1716396908057,444.0,0.0001967,15]
[327732737,1716397025831,311.0,0.0001962,15]
[327732738,1716397026495,311.0,0.0001961,15]
[327732739,1716397027085,311.0,0.000196,15]
[327732744,1716397103409,1194.24,0.00021589,30]
[327732745,1716397103763,1194.24,0.00025135,30]
[327732747,1716397146768,218.0,0.0001959,15]
[327732748,1716397147390,218.0,0.0001958,15]
[327732749,1716397149058,218.0,0.0001957,15]
[327732753,1716397255531,757.77,0.00033151,120]
[327732754,1716397265481,311.0,0.00019672,15]
[327732755,1716397265959,153.0,0.00019672,15]
[327732756,1716397266068,311.0,0.00019662,15]
[327732757,1716397266685,311.0,0.00019652,15]
[327732758,1716397266743,153.0,0.00019662,15]
[327732759,1716397267351,153.0,0.00019652,15]
[327732767,1716397361502,-939.71354833,0.00012652,2]
[327732768,1716397361525,-526.12031069,0.00012653,2]
[327732769,1716397361548,-267.89346007,0.00012653,2]
[327732770,1716397361572,-2266.27268091,0.00012653,2]
[327732771,1716397363089,-4000.0,0.00012653,2]
[327732772,1716397364058,-4000.0,0.00012653,2]
[327732773,1716397364694,-4000.0,0.00012653,2]
[327732774,1716397365278,-939.71354833,0.00012652,2]
[327732775,1716397365314,-3060.28645167,0.00012653,2]
[327732776,1716397365842,-4000.0,0.00012653,2]
[327732777,1716397366492,-4000.0,0.00012653,2]
[327732778,1716397367163,-4000.0,0.00012653,2]
[327732779,1716397369255,-4000.0,0.00012653,2]
[327732780,1716397369472,-4000.0,0.00012653,2]
[327732781,1716397371400,-4000.0,0.00012653,2]
[327732782,1716397372043,-1994.80652576,0.00012653,2]
[327732783,1716397372212,-155.0,0.00012654,2]
[327732784,1716397372247,-1850.19347424,0.00012654,2]
[327732785,1716397383165,-2813.98016787,0.00012652,2]
[327732786,1716397383187,-1186.01983213,0.00012654,2]
[327732787,1716397385986,150.5,0.00019642,15]
[327732788,1716397386479,-150.0,0.00012653,2]
[327732789,1716397386502,-3850.0,0.00012654,2]
[327732790,1716397386595,150.5,0.00019632,15]
[327732791,1716397387344,150.5,0.00019622,15]
[327732792,1716397398559,-186.520838,0.0001259,2]
[327732793,1716397398582,-3813.479162,0.00012654,2]
[327732794,1716397411414,-2001.45925385,0.00012653,2]
[327732795,1716397411451,-1998.54074615,0.00012654,2]
[327732796,1716397413347,151.0,0.00024795,30]
[327732797,1716397413383,151.0,0.000243,120]